[Event "ESP-chT Primera Division 2019"]
[Site "Linares"]
[Date "2019.09.01"]
[Round "7.2"]
[White "Plazuelo Pascual, Juan"]
[Black "Andres Gonzalez, Ivan"]
[Result "1-0"]
[ECO "D35"]
[WhiteElo "2411"]
[BlackElo "2284"]
[Annotator "NA"]
[PlyCount "93"]
[EventDate "2019.08.26"]
[EventType "team-tourn"]
[EventCountry "ESP"]
[SourceTitle "playchess.com"]
[Source "ChessBase"]
[SourceQuality "1"]
[TimeControl "5400+30"]

1. d4 {[%emt 0:00:00]} d5 {[%emt 0:00:00]} 2. c4 {[%emt 0:00:00]} e6 {[%emt 0:00:17]} 3. Nc3 {[%emt 0:00:00]} Nf6 {[%emt 0:00:49]} 4. cxd5 {[%emt 0:00:00]} exd5 {[%emt 0:00:25]} 5. Bg5 {[%emt 0:00:20]} c6 {[%emt 0:01:32]} 6. e3 {[%emt 0:00:09]} Bf5 {[%emt 0:01:42]} 7. Qf3 {[%emt 0:00:52]} Bg6 {[%emt 0:01:18]} 8. Bxf6 {[%emt 0:00:07]} Qxf6 {[%emt 0:00:21]} 9. Qxf6 {[%emt 0:00:05]} gxf6 {[%emt 0:00:07]} 10. Nf3 {[%emt 0:01:21]} Nd7 {[%emt 0:04:16]} 11. Nh4 {[%emt 0:02:18]} Be7 {[%emt 0:06:36]} 12. Ne2 {[%emt 0:00:25]} Bb4+ {[%emt 0:06:55]} 13. Kd1 {[%emt 0:02:31]} Bd3 {[%emt 0:22:19]} 14. Ng3 {[%emt 0:05:09]} Bxf1 {[%emt 0:00:28]} 15. Rxf1 {[%emt 0:00:22]} Rg8 {[%emt 0:00:34]} 16. h3 {[%emt 0:04:57]} Nf8 {[%emt 0:07:11]} 17. Nh5 {[%emt 0:02:13]} Be7 {[%emt 0:02:05]} 18. g4 {[%emt 0:00:52]} Ne6 {[%emt 0:01:15]} 19. Nf5 {[%emt 0:01:53]} a5 {[%emt 0:11:04]} 20. f3 {[%emt 0:08:25]} a4 {[%emt 0:01:47]} 21. Kc2 {[%emt 0:03:58]} Kd7 {[%emt 0:01:48]} 22. Rad1 {[%emt 0:00:50]} Ra5 {[%emt 0:01:00]} 23. h4 {[%emt 0:15:40]} Rb5 {[%emt 0:02:27]} 24. Rg1 {[%emt 0:02:13]} Rc8 {[%emt 0:04:55]} 25. Kb1 {[%emt 0:01:58]} Ke8 {[%emt 0:04:00]} 26. g5 {[%emt 0:02:47]} fxg5 {[%emt 0:00:36]} 27. hxg5 {[%emt 0:00:13]} c5 {[%emt 0:00:30]} 28. Nf6+ {[%emt 0:00:51]} Bxf6 {[%emt 0:00:23]} 29. Nd6+ {[%emt 0:00:46]} Kd7 {[%emt 0:00:14]} 30. Nxb5 {[%emt 0:00:34]} Bxg5 {[%emt 0:00:14]} 31. f4 {[%emt 0:02:04]} Bf6 {[%emt 0:00:36]} 32. Nc3 {[%emt 0:00:39]} Kc6 {[%emt 0:01:55]} 33. Nxa4 {[%emt 0:01:21]} c4 {[%emt 0:00:19]} 34. e4 {[%emt 0:05:10]} Nxf4 {[%emt 0:04:53]} 35. Rgf1 {[%emt 0:00:31]} Bg5 {[%emt 0:00:34]} 36. exd5+ {[%emt 0:00:36]} Kd6 {[%emt 0:01:00]} 37. Nb6 {[%emt 0:04:42]} Re8 {[%emt 0:01:29]} 38. Nxc4+ {[%emt 0:01:23]} Kxd5 {[%emt 0:00:17]} 39. Nb6+ {[%emt 0:00:20]} Kc6 {[%emt 0:00:48]} 40. Na4 {[%emt 0:00:14]} h5 {[%emt 0:00:28]} 41. d5+ {[%emt 0:03:45]} Kd6 {[%emt 0:00:50]} 42. Nc3 {[%emt 0:00:58]} h4 {[%emt 0:01:14]} 43. Rd4 {[%emt 0:03:56]} Rh8 {[%emt 0:03:01]} 44. Ne4+ {[%emt 0:02:18]} Ke5 {[%emt 0:00:13]} 45. Nxg5 {[%emt 0:00:05]} Kxd4 {[%emt 0:00:15]} 46. Rxf4+ {[%emt 0:00:04]} Ke3 {[%emt 0:00:34]} 47. Nh3 {[%emt 0:00:46]} 1-0

[Event "ESP-chT Primera Division 2019"]
[Site "Linares"]
[Date "2019.09.01"]
[Round "7.3"]
[White "Vergara Anton, Diego"]
[Black "Almagro Llamas, Pablo"]
[Result "0-1"]
[ECO "A47"]
[WhiteElo "2128"]
[BlackElo "2453"]
[Annotator "ChessBase"]
[PlyCount "66"]
[EventDate "2019.08.26"]
[EventType "team-tourn"]
[EventCountry "ESP"]
[SourceTitle "playchess.com"]
[Source "ChessBase"]
[SourceQuality "1"]
[TimeControl "5400+30"]

1. d4 {[%emt 0:00:00]} Nf6 {[%emt 0:00:15]} 2. Nf3 {[%emt 0:00:00]} b6 {[%emt 0:02:31]} 3. g3 {[%emt 0:00:09]} Bb7 {[%emt 0:00:05]} 4. Bg2 {[%emt 0:00:08]} g6 {[%emt 0:00:21]} 5. O-O {[%emt 0:01:56]} Bg7 {[%emt 0:00:06]} 6. c4 {[%emt 0:02:54]} O-O {[%emt 0:01:52]} 7. Nc3 {[%emt 0:01:39]} Ne4 {[%emt 0:01:08]} 8. Nxe4 {[%emt 0:00:53]} Bxe4 {[%emt 0:00:09]} 9. b3 {[%emt 0:00:57]} c5 {[%emt 0:26:47]} 10. Be3 {[%emt 0:09:22]} Nc6 {[%emt 0:13:13]} 11. dxc5 {[%emt 0:01:22]} bxc5 {[%emt 0:00:16]} 12. Bxc5 {[%emt 0:06:27]} Qa5 {[%emt 0:06:42]} 13. Be3 {[%emt 0:04:55]} d5 {[%emt 0:07:50]} 14. Nd4 {[%emt 0:09:24]} Bxd4 {[%emt 0:02:08]} 15. Bxd4 {[%emt 0:00:47]} Bxg2 {[%emt 0:00:09]} 16. Kxg2 {[%emt 0:00:55]} dxc4 {[%emt 0:00:08]} 17. Be3 {[%emt 0:04:54]} c3 {[%emt 0:00:15]} 18. Qc2 {[%emt 0:04:49]} Rac8 {[%emt 0:02:28]} 19. a3 {[%emt 0:01:08]} e5 {[%emt 0:13:31]} 20. Rfd1 {[%emt 0:06:30]} Nd4 {[%emt 0:13:58]} 21. Bxd4 {[%emt 0:01:47]} exd4 {[%emt 0:00:08]} 22. Rxd4 {[%emt 0:02:50]} Rfd8 {[%emt 0:00:48]} 23. b4 {[%emt 0:07:02]} Qc7 {[%emt 0:00:12]} 24. Rxd8+ {[%emt 0:00:11]} Rxd8 {[%emt 0:00:10]} 25. Rc1 {[%emt 0:00:55]} Qc6+ {[%emt 0:00:26]} 26. e4 {[%emt 0:02:28]} Rc8 {[%emt 0:00:30]} 27. Kg1 {[%emt 0:02:49]} Qa6 {[%emt 0:03:38]} 28. a4 {[%emt 0:03:37]} Qc4 {[%emt 0:00:20]} 29. b5 {[%emt 0:01:18]} Rd8 {[%emt 0:01:14]} 30. Kg2 {[%emt 0:03:03]} Rd3 {[%emt 0:00:24]} 31. Qe2 {[%emt 0:01:28]} Rxg3+ {[%emt 0:00:21]} 32. hxg3 {[%emt 0:00:56]} Qxe2 {[%emt 0:00:09]} 33. Rxc3 {[%emt 0:00:02]} Qxe4+ {[%emt 0:00:19]} 0-1

[Event "ESP-chT Primera Division 2019"]
[Site "Linares"]
[Date "2019.09.01"]
[Round "7.4"]
[White "Vazquez Torres, Adrian"]
[Black "Gonzalez Guedes, Iyan"]
[Result "0-1"]
[ECO "B50"]
[WhiteElo "2143"]
[BlackElo "2115"]
[Annotator "NA"]
[PlyCount "70"]
[EventDate "2019.08.26"]
[EventType "team-tourn"]
[EventCountry "ESP"]
[SourceTitle "playchess.com"]
[Source "ChessBase"]
[SourceQuality "1"]
[TimeControl "5400+30"]

1. e4 {[%emt 0:00:00]} c5 {[%emt 0:00:00]} 2. Nf3 {[%emt 0:00:00]} d6 {[%emt 0:00:00]} 3. c4 {[%emt 0:00:00]} e5 {[%emt 0:01:45]} 4. Nc3 {[%emt 0:00:00]} Nc6 {[%emt 0:00:37]} 5. Be2 {[%emt 0:00:12]} g6 {[%emt 0:01:11]} 6. d3 {[%emt 0:00:56]} Bg7 {[%emt 0:01:29]} 7. Nd5 {[%emt 0:03:10]} Nge7 {[%emt 0:03:11]} 8. Bg5 {[%emt 0:02:18]} h6 {[%emt 0:03:14]} 9. Bf6 {[%emt 0:01:31]} O-O {[%emt 0:01:39]} 10. Nxe7+ {[%emt 0:01:17]} Nxe7 {[%emt 0:00:12]} 11. Bxg7 {[%emt 0:00:52]} Kxg7 {[%emt 0:00:01]} 12. Qd2 {[%emt 0:02:36]} a6 {[%emt 0:06:26]} 13. h4 {[%emt 0:03:25]} Nc6 {[%emt 0:03:48]} 14. a3 {[%emt 0:10:51]} Bg4 {[%emt 0:07:33]} 15. Ng1 {[%emt 0:32:03]} Be6 {[%emt 0:02:11]} 16. g4 {[%emt 0:10:06]} Nd4 {[%emt 0:06:26]} 17. Rb1 {[%emt 0:07:05]} b5 {[%emt 0:06:02]} 18. Nf3 {[%emt 0:00:13]} Nxe2 {[%emt 0:02:58]} 19. Qxe2 {[%emt 0:02:41]} Bxg4 {[%emt 0:00:10]} 20. Qe3 {[%emt 0:00:19]} f5 {[%emt 0:09:40]} 21. exf5 {[%emt 0:01:43]} Bxf3 {[%emt 0:11:43]} 22. Qxf3 {[%emt 0:00:07]} Rxf5 {[%emt 0:00:08]} 23. Qb7+ {[%emt 0:02:22]} Rf7 {[%emt 0:00:46]} 24. Qg2 {[%emt 0:00:45]} Rb8 {[%emt 0:02:21]} 25. Rh3 {[%emt 0:00:28]} Qf6 {[%emt 0:01:51]} 26. Rg3 {[%emt 0:00:16]} bxc4 {[%emt 0:01:51]} 27. dxc4 {[%emt 0:01:52]} Qf5 {[%emt 0:00:57]} 28. Rd1 {[%emt 0:01:05]} Rxb2 {[%emt 0:00:44]} 29. Rxd6 {[%emt 0:00:17]} Rf6 {[%emt 0:07:39]} 30. Rgd3 {[%emt 0:02:57]} Qxf2+ {[%emt 0:06:18]} 31. Qxf2 {[%emt 0:00:06]} Rbxf2 {[%emt 0:00:01]} 32. Rd7+ {[%emt 0:00:12]} Rf7 {[%emt 0:00:34]} 33. R7d5 {[%emt 0:00:07]} Rh2 {[%emt 0:03:44]} 34. Rxe5 {[%emt 0:00:29]} Rb7 {[%emt 0:00:33]} 35. Rd1 {[%emt 0:01:12]} Rbb2 {[%emt 0:01:03]} 0-1

[Event "ESP-chT Primera Division 2019"]
[Site "Linares"]
[Date "2019.09.01"]
[Round "7.5"]
[White "Badillo Ramos, Steve"]
[Black "Perez De Aranda A., Leonardo I."]
[Result "0-1"]
[ECO "C41"]
[WhiteElo "1967"]
[BlackElo "2119"]
[Annotator "NA"]
[PlyCount "84"]
[EventDate "2019.08.26"]
[EventType "team-tourn"]
[EventCountry "ESP"]
[SourceTitle "playchess.com"]
[Source "ChessBase"]
[SourceQuality "1"]
[TimeControl "5400+30"]

1. e4 {[%emt 0:00:00]} d6 {[%emt 0:00:58]} 2. d4 {[%emt 0:00:00]} Nf6 {[%emt 0:00:13]} 3. Nc3 {[%emt 0:00:00]} e5 {[%emt 0:00:21]} 4. Nf3 {[%emt 0:00:13]} Nbd7 {[%emt 0:00:22]} 5. Bc4 {[%emt 0:01:51]} Be7 {[%emt 0:00:20]} 6. O-O {[%emt 0:00:26]} O-O {[%emt 0:00:16]} 7. Qe2 {[%emt 0:01:32]} c6 {[%emt 0:00:58]} 8. a4 {[%emt 0:00:08]} b6 {[%emt 0:03:37]} 9. Rd1 {[%emt 0:05:05]} Qc7 {[%emt 0:03:11]} 10. b3 {[%emt 0:08:42]} a6 {[%emt 0:05:44]} 11. d5 {[%emt 0:07:40]} c5 {[%emt 0:04:54]} 12. Qd3 {[%emt 0:20:29]} Ne8 {[%emt 0:07:56]} 13. Ne2 {[%emt 0:01:44]} Qb7 {[%emt 0:05:30]} 14. Ng3 {[%emt 0:03:14]} b5 {[%emt 0:01:28]} 15. Nf5 {[%emt 0:10:22]} Bf6 {[%emt 0:04:05]} 16. Nd2 {[%emt 0:01:51]} bxc4 {[%emt 0:04:15]} 17. Nxc4 {[%emt 0:00:55]} Qb8 {[%emt 0:22:13]} 18. g4 {[%emt 0:16:21]} Nb6 {[%emt 0:04:34]} 19. g5 {[%emt 0:02:50]} Bd8 {[%emt 0:01:32]} 20. h4 {[%emt 0:05:56]} Nxc4 {[%emt 0:00:33]} 21. bxc4 {[%emt 0:00:12]} g6 {[%emt 0:02:15]} 22. Nh6+ {[%emt 0:02:45]} Kh8 {[%emt 0:00:22]} 23. f4 {[%emt 0:00:31]} f6 {[%emt 0:04:48]} 24. f5 {[%emt 0:00:52]} Ra7 {[%emt 0:08:44]} 25. Kh2 {[%emt 0:04:06]} Rg7 {[%emt 0:02:03]} 26. Rg1 {[%emt 0:00:11]} a5 {[%emt 0:02:40]} 27. Bd2 {[%emt 0:00:47]} Qc7 {[%emt 0:01:00]} 28. Raf1 {[%emt 0:00:09]} Qe7 {[%emt 0:01:21]} 29. Rg3 {[%emt 0:00:51]} Qd7 {[%emt 0:02:29]} 30. Rfg1 {[%emt 0:00:39]} fxg5 {[%emt 0:00:52]} 31. hxg5 {[%emt 0:00:17]} gxf5 {[%emt 0:01:16]} 32. exf5 {[%emt 0:00:54]} Rxf5 {[%emt 0:00:07]} 33. Nxf5 {[%emt 0:00:41]} Qxf5 {[%emt 0:00:04]} 34. Qe3 {[%emt 0:00:30]} Qg6 {[%emt 0:03:30]} 35. Qf3 {[%emt 0:01:16]} Rf7 {[%emt 0:00:49]} 36. Qe2 {[%emt 0:00:13]} Ng7 {[%emt 0:00:21]} 37. Rb1 {[%emt 0:01:01]} Nf5 {[%emt 0:00:51]} 38. Rg2 {[%emt 0:01:19]} Nd4 {[%emt 0:00:21]} 39. Qd1 {[%emt 0:00:13]} Nf3+ {[%emt 0:00:26]} 40. Kg3 {[%emt 0:00:07]} Bxg5 {[%emt 0:00:39]} 41. Bxg5 {[%emt 0:01:59]} Qxg5+ {[%emt 0:00:05]} 42. Kf2 {[%emt 0:00:06]} Nh4+ {[%emt 0:00:12]} 0-1

[Event "ESP-chT Primera Division 2019"]
[Site "Linares"]
[Date "2019.09.01"]
[Round "7.6"]
[White "Arno Bendicho, Xenia"]
[Black "Bermudez Revuelta, Paula"]
[Result "1/2-1/2"]
[ECO "A37"]
[WhiteElo "1774"]
[BlackElo "1702"]
[Annotator "NA"]
[PlyCount "81"]
[EventDate "2019.08.26"]
[EventType "team-tourn"]
[EventCountry "ESP"]
[SourceTitle "playchess.com"]
[Source "ChessBase"]
[SourceQuality "1"]
[TimeControl "5400+30"]

1. c4 {[%emt 0:00:00]} c5 {[%emt 0:00:00]} 2. Nc3 {[%emt 0:00:00]} Nc6 {[%emt 0:00:00]} 3. g3 {[%emt 0:00:00]} g6 {[%emt 0:00:00]} 4. Bg2 {[%emt 0:00:00]} Bg7 5. Nf3 {[%emt 0:00:14]} Nh6 {[%emt 0:00:00]} 6. O-O {[%emt 0:00:27]} Nf5 7. d3 {[%emt 0:01:29]} O-O {[%emt 0:00:00]} 8. Rb1 {[%emt 0:00:34]} d6 {[%emt 0:00:06]} 9. e3 Qd7 10. Ne2 {[%emt 0:08:24]} b6 {[%emt 0:09:18]} 11. b3 {[%emt 0:06:17]} Bb7 {[%emt 0:01:02]} 12. Bb2 {[%emt 0:00:06]} Rfd8 {[%emt 0:03:49]} 13. Bxg7 {[%emt 0:02:01]} Kxg7 {[%emt 0:00:03]} 14. d4 {[%emt 0:00:30]} cxd4 {[%emt 0:00:30]} 15. e4 {[%emt 0:10:10]} d3 {[%emt 0:09:24]} 16. Qxd3 {[%emt 0:04:28]} Nh6 {[%emt 0:00:14]} 17. Nfd4 {[%emt 0:04:00]} Ng8 {[%emt 0:04:55]} 18. Nxc6 {[%emt 0:07:15]} Bxc6 {[%emt 0:02:32]} 19. Qd4+ {[%emt 0:00:54]} e5 {[%emt 0:02:53]} 20. Qe3 {[%emt 0:00:51]} f5 {[%emt 0:03:03]} 21. f4 {[%emt 0:05:18]} Nf6 {[%emt 0:13:06]} 22. Nc3 {[%emt 0:12:33]} Re8 {[%emt 0:00:57]} 23. exf5 {[%emt 0:00:05]} Bxg2 24. Kxg2 Ng4 {[%emt 0:05:35]} 25. Qf3 {[%emt 0:03:32]} gxf5 {[%emt 0:06:22]} 26. Rbe1 {[%emt 0:05:18]} e4 {[%emt 0:01:55]} 27. Qe2 {[%emt 0:00:17]} Qc6 {[%emt 0:02:45]} 28. Nd5 {[%emt 0:00:12]} b5 {[%emt 0:04:09]} 29. Qb2+ {[%emt 0:14:38]} Kg8 {[%emt 0:00:30]} 30. Nf6+ {[%emt 0:00:30]} Nxf6 31. Qxf6 {[%emt 0:00:07]} Rf8 {[%emt 0:05:10]} 32. Qe6+ {[%emt 0:00:59]} Kh8 {[%emt 0:01:16]} 33. cxb5 {[%emt 0:00:16]} Qxb5 {[%emt 0:01:20]} 34. Qxd6 {[%emt 0:00:33]} Qb7 {[%emt 0:02:29]} 35. Qd4+ {[%emt 0:04:06]} Kg8 {[%emt 0:00:20]} 36. Rd1 {[%emt 0:02:41]} Rad8 {[%emt 0:02:13]} 37. Qc4+ {[%emt 0:00:27]} Kh8 {[%emt 0:00:21]} 38. Rxd8 {[%emt 0:01:43]} Rxd8 {[%emt 0:00:01]} 39. Qc3+ {[%emt 0:04:00]} Kg8 {[%emt 0:00:11]} 40. Qc4+ {[%emt 0:00:48]} Kh8 {[%emt 0:00:07]} 41. Qc3+ {[%emt 0:00:30]} 1/2-1/2

[Event "ESP-chT Primera Division 2019"]
[Site "Linares"]
[Date "2019.09.01"]
[Round "7.7"]
[White "Kokarev, Dmitry"]
[Black "Gonzalez Merino, Alberto"]
[Result "1-0"]
[ECO "C18"]
[WhiteElo "2598"]
[BlackElo "2226"]
[Annotator "ChessBase"]
[PlyCount "103"]
[EventDate "2019.08.26"]
[EventType "team-tourn"]
[EventCountry "ESP"]
[SourceTitle "playchess.com"]
[Source "ChessBase"]
[SourceQuality "1"]
[TimeControl "5400+30"]

1. e4 {[%emt 0:00:00]} e6 {[%emt 0:00:00]} 2. d4 {[%emt 0:00:00]} d5 {[%emt 0:00:00]} 3. Nc3 {[%emt 0:00:00]} Bb4 {[%emt 0:00:16]} 4. e5 {[%emt 0:00:08]} c5 {[%emt 0:00:04]} 5. a3 {[%emt 0:00:09]} Bxc3+ {[%emt 0:00:05]} 6. bxc3 {[%emt 0:00:06]} Qc7 {[%emt 0:00:10]} 7. Qg4 {[%emt 0:00:20]} f5 {[%emt 0:00:09]} 8. Qg3 {[%emt 0:00:10]} cxd4 {[%emt 0:00:35]} 9. cxd4 {[%emt 0:00:08]} Ne7 {[%emt 0:00:03]} 10. Ne2 {[%emt 0:00:22]} O-O {[%emt 0:00:42]} 11. c3 {[%emt 0:00:14]} Nbc6 {[%emt 0:04:37]} 12. h4 {[%emt 0:04:35]} Nd8 {[%emt 0:13:25]} 13. h5 {[%emt 0:01:35]} Nf7 {[%emt 0:01:50]} 14. h6 {[%emt 0:00:33]} g6 {[%emt 0:00:28]} 15. a4 {[%emt 0:01:36]} Kh8 {[%emt 0:12:21]} 16. Qh4 {[%emt 0:08:02]} Ng8 {[%emt 0:02:08]} 17. g4 {[%emt 0:00:57]} Qd8 {[%emt 0:06:27]} 18. Qxd8 {[%emt 0:18:11]} Nxd8 {[%emt 0:01:15]} 19. Ba3 {[%emt 0:02:05]} Rf7 {[%emt 0:00:21]} 20. gxf5 {[%emt 0:09:25]} Rxf5 {[%emt 0:00:35]} 21. Bh3 {[%emt 0:00:29]} Rf7 {[%emt 0:02:12]} 22. Bg4 {[%emt 0:00:25]} Bd7 {[%emt 0:02:47]} 23. Bd6 {[%emt 0:08:25]} Rc8 {[%emt 0:04:55]} 24. a5 {[%emt 0:02:12]} Bb5 {[%emt 0:17:47]} 25. Bc5 {[%emt 0:00:45]} a6 {[%emt 0:00:16]} 26. Bb6 {[%emt 0:04:22]} Ne7 {[%emt 0:17:31]} 27. Bxd8 {[%emt 0:01:27]} Rxd8 {[%emt 0:00:02]} 28. Bxe6 {[%emt 0:00:11]} Rf3 {[%emt 0:00:28]} 29. Ra3 {[%emt 0:15:29]} Nf5 {[%emt 0:02:37]} 30. Bxf5 {[%emt 0:01:24]} gxf5 {[%emt 0:05:37]} 31. Ng1 {[%emt 0:01:56]} Rd3 {[%emt 0:00:48]} 32. Rh3 {[%emt 0:02:38]} Rg8 {[%emt 0:01:14]} 33. Rxd3 {[%emt 0:00:11]} Bxd3 {[%emt 0:00:37]} 34. Ne2 {[%emt 0:02:02]} Rg4 {[%emt 0:00:16]} 35. Kd2 {[%emt 0:02:15]} Bc4 {[%emt 0:00:05]} 36. Ra1 {[%emt 0:00:58]} Rh4 {[%emt 0:01:03]} 37. Rg1 {[%emt 0:01:19]} f4 {[%emt 0:02:19]} 38. Rg7 {[%emt 0:02:24]} Rxh6 {[%emt 0:00:48]} 39. Rxb7 {[%emt 0:00:25]} Rh2 {[%emt 0:01:25]} 40. Nxf4 {[%emt 0:00:27]} Rxf2+ {[%emt 0:00:09]} 41. Ke3 {[%emt 0:00:11]} Rf1 {[%emt 0:00:18]} 42. Nh5 {[%emt 0:00:25]} Kg8 {[%emt 0:01:32]} 43. Nf6+ {[%emt 0:00:11]} Kf8 {[%emt 0:00:01]} 44. Nxh7+ {[%emt 0:00:11]} Ke8 {[%emt 0:00:01]} 45. Nf6+ {[%emt 0:00:13]} Kf8 {[%emt 0:00:07]} 46. Rd7 {[%emt 0:00:35]} Ra1 {[%emt 0:00:42]} 47. Kf4 {[%emt 0:00:27]} Rf1+ {[%emt 0:00:20]} 48. Kg5 {[%emt 0:00:25]} Rg1+ {[%emt 0:00:04]} 49. Kf5 {[%emt 0:00:31]} Bf1 {[%emt 0:02:15]} 50. Rxd5 {[%emt 0:00:25]} Bh3+ {[%emt 0:00:13]} 51. Kf4 {[%emt 0:00:10]} Rc1 {[%emt 0:00:45]} 52. Rc5 {[%emt 0:00:16]} 1-0

[Event "ESP-chT Primera Division 2019"]
[Site "Linares"]
[Date "2019.09.01"]
[Round "7.8"]
[White "Rodriguez Amezqueta, Carlos"]
[Black "Volkov, Sergey"]
[Result "0-1"]
[ECO "D00"]
[WhiteElo "2063"]
[BlackElo "2547"]
[Annotator "ChessBase"]
[PlyCount "82"]
[EventDate "2019.08.26"]
[EventType "team-tourn"]
[EventCountry "ESP"]
[SourceTitle "playchess.com"]
[Source "ChessBase"]
[SourceQuality "1"]
[TimeControl "5400+30"]

1. d4 {[%emt 0:00:00]} d5 {[%emt 0:00:00]} 2. Bf4 {[%emt 0:00:00]} c5 {[%emt 0:00:00]} 3. e3 {[%emt 0:00:25]} Nc6 {[%emt 0:00:06]} 4. c3 {[%emt 0:00:17]} Bf5 {[%emt 0:00:20]} 5. Qb3 {[%emt 0:01:04]} Qd7 {[%emt 0:00:55]} 6. Nf3 {[%emt 0:03:46]} c4 {[%emt 0:00:33]} 7. Qd1 {[%emt 0:01:07]} e6 {[%emt 0:03:28]} 8. Nbd2 {[%emt 0:03:52]} b5 {[%emt 0:03:44]} 9. Be2 {[%emt 0:04:30]} Bd6 {[%emt 0:03:29]} 10. O-O {[%emt 0:05:13]} Nge7 {[%emt 0:02:26]} 11. Bxd6 {[%emt 0:05:22]} Qxd6 {[%emt 0:01:24]} 12. b3 {[%emt 0:00:32]} O-O {[%emt 0:01:30]} 13. bxc4 {[%emt 0:03:53]} bxc4 {[%emt 0:00:28]} 14. Nh4 {[%emt 0:00:22]} Qa3 {[%emt 0:02:37]} 15. Nxf5 {[%emt 0:02:12]} Nxf5 {[%emt 0:00:07]} 16. Qc2 {[%emt 0:01:20]} Nd6 {[%emt 0:03:22]} 17. Bf3 {[%emt 0:01:28]} f5 {[%emt 0:01:44]} 18. Rab1 {[%emt 0:04:34]} Rab8 {[%emt 0:02:00]} 19. Rxb8 {[%emt 0:01:36]} Rxb8 {[%emt 0:00:08]} 20. Rb1 {[%emt 0:00:19]} Rb6 {[%emt 0:00:29]} 21. Rxb6 {[%emt 0:01:09]} axb6 {[%emt 0:00:08]} 22. Nb1 {[%emt 0:03:21]} Qa5 {[%emt 0:00:37]} 23. g4 {[%emt 0:04:45]} g6 {[%emt 0:01:02]} 24. h4 {[%emt 0:01:10]} Kf7 {[%emt 0:04:00]} 25. h5 {[%emt 0:04:36]} Ke7 {[%emt 0:00:41]} 26. hxg6 {[%emt 0:00:36]} hxg6 {[%emt 0:00:03]} 27. gxf5 {[%emt 0:00:25]} gxf5 {[%emt 0:00:25]} 28. Bg2 {[%emt 0:04:41]} Nb8 {[%emt 0:02:10]} 29. f3 {[%emt 0:01:06]} Nd7 {[%emt 0:00:09]} 30. e4 {[%emt 0:00:27]} fxe4 {[%emt 0:02:29]} 31. fxe4 {[%emt 0:00:19]} dxe4 {[%emt 0:00:10]} 32. Bxe4 {[%emt 0:01:33]} Qg5+ {[%emt 0:02:39]} 33. Bg2 {[%emt 0:02:52]} Nf6 {[%emt 0:00:39]} 34. Nd2 {[%emt 0:05:17]} Qe3+ {[%emt 0:00:36]} 35. Kh1 {[%emt 0:01:16]} Qe2 {[%emt 0:01:38]} 36. Qc1 {[%emt 0:02:48]} Qe3 {[%emt 0:16:39]} 37. Qc2 {[%emt 0:01:12]} Qf2 {[%emt 0:00:10]} 38. Qd1 {[%emt 0:02:20]} Nd5 {[%emt 0:02:39]} 39. Bxd5 {[%emt 0:07:30]} exd5 {[%emt 0:00:55]} 40. a4 {[%emt 0:12:21]} Nf5 {[%emt 0:02:34]} 41. Nf1 {[%emt 0:00:18]} Nh4 {[%emt 0:00:46]} 0-1

[Event "ESP-chT Primera Division 2019"]
[Site "Linares"]
[Date "2019.09.01"]
[Round "7.9"]
[White "Cuenca Jimenez, Jose Fernando"]
[Black "Fernandez Gonzalez, Juan Carlos"]
[Result "1-0"]
[ECO "A11"]
[WhiteElo "2515"]
[BlackElo "2396"]
[Annotator "ChessBase"]
[PlyCount "87"]
[EventDate "2019.08.26"]
[EventType "team-tourn"]
[EventCountry "ESP"]
[SourceTitle "playchess.com"]
[Source "ChessBase"]
[SourceQuality "1"]
[TimeControl "5400+30"]

1. c4 {[%emt 0:00:00]} c6 {[%emt 0:00:17]} 2. d4 {[%emt 0:00:23]} Nf6 {[%emt 0:00:24]} 3. Nf3 {[%emt 0:00:47]} g6 {[%emt 0:00:48]} 4. Nc3 {[%emt 0:00:49]} d5 {[%emt 0:00:56]} 5. e3 {[%emt 0:00:38]} Bg7 {[%emt 0:00:39]} 6. Be2 {[%emt 0:00:06]} O-O {[%emt 0:01:06]} 7. O-O {[%emt 0:00:04]} Nbd7 {[%emt 0:02:18]} 8. Qc2 {[%emt 0:07:29]} dxc4 {[%emt 0:11:00]} 9. Bxc4 {[%emt 0:01:01]} Qc7 {[%emt 0:03:01]} 10. b3 {[%emt 0:06:21]} Nb6 {[%emt 0:03:56]} 11. Be2 {[%emt 0:07:21]} Nbd5 {[%emt 0:04:26]} 12. Bb2 {[%emt 0:04:33]} Nxc3 {[%emt 0:06:38]} 13. Qxc3 {[%emt 0:00:58]} Bf5 {[%emt 0:06:24]} 14. Rac1 {[%emt 0:04:04]} Ne4 {[%emt 0:05:41]} 15. Qc4 {[%emt 0:07:17]} Qa5 {[%emt 0:06:57]} 16. b4 {[%emt 0:08:34]} Qb6 {[%emt 0:00:48]} 17. Ba3 {[%emt 0:04:29]} Rfe8 {[%emt 0:02:35]} 18. Qb3 {[%emt 0:07:48]} Rac8 19. Rfd1 {[%emt 0:01:24]} Bf6 {[%emt 0:15:58]} 20. Ne5 {[%emt 0:07:58]} Be6 {[%emt 0:02:00]} 21. Qc2 {[%emt 0:01:58]} Nd6 {[%emt 0:05:26]} 22. Qb1 {[%emt 0:18:47]} a5 23. Nc4 {[%emt 0:00:02]} Nxc4 {[%emt 0:03:41]} 24. Bxc4 {[%emt 0:00:30]} Bd5 25. Qb3 {[%emt 0:03:26]} axb4 {[%emt 0:08:16]} 26. Bxb4 {[%emt 0:00:30]} e6 {[%emt 0:01:56]} 27. Qc3 {[%emt 0:01:36]} Bxc4 {[%emt 0:05:13]} 28. Qxc4 {[%emt 0:00:02]} Ra8 {[%emt 0:00:39]} 29. Bc5 {[%emt 0:03:16]} Qa6 {[%emt 0:00:06]} 30. Qb3 {[%emt 0:01:34]} Be7 {[%emt 0:00:14]} 31. Bxe7 {[%emt 0:00:37]} Rxe7 {[%emt 0:00:02]} 32. Rd2 {[%emt 0:00:15]} Rd7 {[%emt 0:00:34]} 33. Rb2 {[%emt 0:00:53]} Ra7 {[%emt 0:01:26]} 34. h4 {[%emt 0:00:26]} h5 {[%emt 0:00:09]} 35. Rc4 {[%emt 0:00:24]} Rd5 {[%emt 0:01:33]} 36. Rb4 {[%emt 0:00:14]} c5 {[%emt 0:02:09]} 37. dxc5 {[%emt 0:00:59]} Rxc5 {[%emt 0:00:07]} 38. Qd1 {[%emt 0:00:42]} Qc6 {[%emt 0:00:40]} 39. Qd8+ {[%emt 0:00:03]} Kg7 {[%emt 0:00:22]} 40. Rf4 {[%emt 0:00:17]} Rf5 {[%emt 0:00:17]} 41. Rfb4 {[%emt 0:01:20]} Rfa5 {[%emt 0:00:44]} 42. Qd2 {[%emt 0:00:17]} Qa6 {[%emt 0:00:55]} 43. Qc3+ {[%emt 0:00:34]} Kh7 {[%emt 0:00:34]} 44. Rb6 {[%emt 0:00:01]} 1-0